[Event "Titled Tuesday Blitz August 15 Late 2023"]
[White "laskakid"]
[Black "rionelG"]
[WhiteElo "2132"]
[BlackElo "2375"]
[Result "0-1"]
[Round "3"]
[TimeControl "180+1"]
[Date "2023.08.15"]
[WhiteClock "0:00:00"]
[BlackClock "0:00:11"]
[Board "171"]

1. e4 {[%clk 0:03:00]}  c5 {[%clk 0:02:58]} 2. c3 {[%clk 0:03:00]}  d5 {[%clk 0:02:58]} 3. exd5 {[%clk 0:03:00]}  Qxd5 {[%clk 0:02:59]} 4. d4 {[%clk 0:03:00]}  Nc6 {[%clk 0:02:59]} 5. Nf3 {[%clk 0:03:00]}  Nf6 {[%clk 0:02:59]} 6. Be3 {[%clk 0:02:59]}  cxd4 {[%clk 0:02:59]} 7. cxd4 {[%clk 0:02:59]}  e6 {[%clk 0:02:59]} 8. Nc3 {[%clk 0:02:59]}  Qd6 {[%clk 0:02:59]} 9. Bd3 {[%clk 0:02:59]}  Be7 {[%clk 0:02:59]} 10. O-O {[%clk 0:02:57]}  O-O {[%clk 0:02:59]} 11. a3 {[%clk 0:02:54]}  b6 {[%clk 0:02:59]} 12. Re1 {[%clk 0:02:53]}  Bb7 {[%clk 0:02:58]} 13. Qe2 {[%clk 0:02:49]}  Rac8 {[%clk 0:02:57]} 14. Rad1 {[%clk 0:02:48]}  Rfd8 {[%clk 0:02:52]} 15. Bb1 {[%clk 0:02:47]}  Na5 {[%clk 0:02:45]} 16. Ne5 {[%clk 0:02:41]}  g6 {[%clk 0:02:36]} 17. Ba2 {[%clk 0:02:30]}  Nd5 {[%clk 0:02:33]} 18. Ne4 {[%clk 0:02:24]}  Qb8 {[%clk 0:02:32]} 19. Bh6 {[%clk 0:02:09]}  Re8 {[%clk 0:01:41]} 20. Qf3 {[%clk 0:01:21]}  f5 {[%clk 0:01:40]} 21. Qh3 {[%clk 0:01:20]}  Nc6 {[%clk 0:01:25]} 22. Ng5 {[%clk 0:00:54]}  Nxe5 {[%clk 0:01:16]} 23. Rxe5 {[%clk 0:00:46]}  Bxg5 {[%clk 0:00:36]} 24. Bxg5 {[%clk 0:00:47]}  Rc2 {[%clk 0:00:35]} 25. Qh6 {[%clk 0:00:35]}  Rxb2 {[%clk 0:00:30]} 26. Bxd5 {[%clk 0:00:34]}  Bxd5 {[%clk 0:00:29]} 27. Bf6 {[%clk 0:00:34]}  Qb7 {[%clk 0:00:28]} 28. Re3 {[%clk 0:00:26]}  Qf7 {[%clk 0:00:27]} 29. Be5 {[%clk 0:00:25]}  Rc8 {[%clk 0:00:23]} 30. Rg3 {[%clk 0:00:24]}  Rbc2 {[%clk 0:00:21]} 31. h4 {[%clk 0:00:22]}  R8c3 {[%clk 0:00:19]} 32. Rg5 {[%clk 0:00:20]}  Rc1 {[%clk 0:00:19]} 33. Rxc1 {[%clk 0:00:12]}  Rxc1+ {[%clk 0:00:20]} 34. Kh2 {[%clk 0:00:12]}  f4 {[%clk 0:00:12]} 35. h5 {[%clk 0:00:11]}  Be4 {[%clk 0:00:12]} 36. hxg6 {[%clk 0:00:00]}  Bxg6 {[%clk 0:00:11]} 0-1


[Site "https://www.chess.com"]

[Event "Titled Tuesday Blitz August 15 Late 2023"]
[White "Vila Dupla, Aurelio"]
[Black "Topalov, Aleksandar"]
[WhiteFideId "2203383"]
[BlackFideId "925659"]
[WhiteElo "2118"]
[BlackElo "2371"]
[Result "0-1"]
[Round "3"]
[TimeControl "180+1"]
[Date "2023.08.15"]
[WhiteClock "0:00:02"]
[BlackClock "0:00:09"]
[Board "172"]

1. Nf3 {[%clk 0:03:00]}  e6 {[%clk 0:02:54]} 2. d4 {[%clk 0:02:59]}  f5 {[%clk 0:02:47]} 3. c4 {[%clk 0:02:53]}  Nf6 {[%clk 0:02:44]} 4. Nc3 {[%clk 0:02:53]}  Bb4 {[%clk 0:02:39]} 5. Bd2 {[%clk 0:02:48]}  O-O {[%clk 0:02:39]} 6. a3 {[%clk 0:02:48]}  Bxc3 {[%clk 0:02:38]} 7. Bxc3 {[%clk 0:02:48]}  Ne4 {[%clk 0:02:38]} 8. Rc1 {[%clk 0:02:48]}  b6 {[%clk 0:02:38]} 9. d5 {[%clk 0:02:45]}  Nxc3 {[%clk 0:02:37]} 10. Rxc3 {[%clk 0:02:45]}  Qe7 {[%clk 0:02:35]} 11. Qd4 {[%clk 0:02:37]}  d6 {[%clk 0:02:24]} 12. dxe6 {[%clk 0:02:36]}  Bxe6 {[%clk 0:02:24]} 13. Re3 {[%clk 0:02:16]}  Nc6 {[%clk 0:02:17]} 14. Qc3 {[%clk 0:02:10]}  f4 {[%clk 0:02:10]} 15. Re4 {[%clk 0:01:59]}  Qd7 {[%clk 0:02:03]} 16. Qd2 {[%clk 0:01:50]}  Na5 {[%clk 0:01:37]} 17. e3 {[%clk 0:01:39]}  fxe3 {[%clk 0:01:32]} 18. Qxe3 {[%clk 0:01:35]}  Rae8 {[%clk 0:01:25]} 19. Nd2 {[%clk 0:01:05]}  Bf5 {[%clk 0:01:22]} 20. Bd3 {[%clk 0:00:56]}  Bxe4 {[%clk 0:01:00]} 21. Bxe4 {[%clk 0:00:56]}  Nxc4 {[%clk 0:00:47]} 22. Nxc4 {[%clk 0:00:24]}  d5 {[%clk 0:00:46]} 23. Nd2 {[%clk 0:00:19]}  dxe4 {[%clk 0:00:40]} 24. O-O {[%clk 0:00:19]}  Qd3 {[%clk 0:00:37]} 25. Qg5 {[%clk 0:00:18]}  h6 {[%clk 0:00:35]} 26. Qe3 {[%clk 0:00:12]}  Qxe3 {[%clk 0:00:30]} 27. fxe3 {[%clk 0:00:11]}  Rxf1+ {[%clk 0:00:29]} 28. Kxf1 {[%clk 0:00:12]}  Kf7 {[%clk 0:00:27]} 29. Ke2 {[%clk 0:00:10]}  Kf6 {[%clk 0:00:28]} 30. Nb3 {[%clk 0:00:08]}  c5 {[%clk 0:00:25]} 31. Nd2 {[%clk 0:00:07]}  Kf5 {[%clk 0:00:21]} 32. h3 {[%clk 0:00:06]}  h5 {[%clk 0:00:21]} 33. Nf1 {[%clk 0:00:04]}  h4 {[%clk 0:00:17]} 34. Nd2 {[%clk 0:00:04]}  Rd8 {[%clk 0:00:14]} 35. Nc4 {[%clk 0:00:03]}  Rd3 {[%clk 0:00:10]} 36. Nd2 {[%clk 0:00:04]}  b5 {[%clk 0:00:08]} 37. Nf1 {[%clk 0:00:02]}  Rb3 {[%clk 0:00:07]} 38. Nd2 {[%clk 0:00:02]}  Rxb2 {[%clk 0:00:07]} 39. Kd1 {[%clk 0:00:03]}  Ra2 {[%clk 0:00:03]} 40. Nb1 {[%clk 0:00:01]}  Ra1 {[%clk 0:00:03]} 41. Kc2 {[%clk 0:00:02]}  Rxb1 {[%clk 0:00:03]} 42. Kxb1 {[%clk 0:00:02]}  Ke5 {[%clk 0:00:04]} 43. Kc2 {[%clk 0:00:03]}  Kd5 {[%clk 0:00:04]} 44. Kc3 {[%clk 0:00:04]}  g5 {[%clk 0:00:05]} 45. Kc2 {[%clk 0:00:04]}  a5 {[%clk 0:00:05]} 46. Kc3 {[%clk 0:00:04]}  a4 {[%clk 0:00:05]} 47. Kc2 {[%clk 0:00:04]}  Kc4 {[%clk 0:00:05]} 48. Kb2 {[%clk 0:00:04]}  b4 {[%clk 0:00:06]} 49. axb4 {[%clk 0:00:03]}  cxb4 {[%clk 0:00:07]} 50. Ka2 {[%clk 0:00:04]}  Kd3 {[%clk 0:00:07]} 51. Kb2 {[%clk 0:00:04]}  Kxe3 {[%clk 0:00:08]} 52. Kc2 {[%clk 0:00:02]}  Kf2 {[%clk 0:00:09]} 0-1


[Site "https://www.chess.com"]

[Event "Titled Tuesday Blitz August 15 Late 2023"]
[White "Beulen, Marcel"]
[Black "Hartikainen, Jarmo"]
[WhiteFideId "1001450"]
[BlackFideId "503134"]
[WhiteElo "2355"]
[BlackElo "2104"]
[Result "1/2-1/2"]
[Round "3"]
[TimeControl "180+1"]
[Date "2023.08.15"]
[WhiteClock "0:00:45"]
[BlackClock "0:00:04"]
[Board "173"]

1. e4 {[%clk 0:03:00]}  c5 {[%clk 0:02:59]} 2. Nf3 {[%clk 0:03:00]}  Nc6 {[%clk 0:02:59]} 3. Bb5 {[%clk 0:03:00]}  e6 {[%clk 0:02:58]} 4. c3 {[%clk 0:02:54]}  d5 {[%clk 0:02:51]} 5. exd5 {[%clk 0:02:52]}  exd5 {[%clk 0:02:51]} 6. d4 {[%clk 0:02:51]}  Bg4 {[%clk 0:02:44]} 7. h3 {[%clk 0:02:25]}  Bh5 {[%clk 0:02:40]} 8. Qa4 {[%clk 0:02:23]}  Rc8 {[%clk 0:02:19]} 9. Ne5 {[%clk 0:02:21]}  Ne7 {[%clk 0:02:11]} 10. O-O {[%clk 0:02:15]}  f6 {[%clk 0:02:10]} 11. Nxc6 {[%clk 0:02:12]}  Nxc6 {[%clk 0:02:01]} 12. Re1+ {[%clk 0:01:51]}  Kf7 {[%clk 0:02:01]} 13. dxc5 {[%clk 0:01:51]}  Bxc5 {[%clk 0:01:53]} 14. Be3 {[%clk 0:01:51]}  Re8 {[%clk 0:01:44]} 15. Nd2 {[%clk 0:01:50]}  Bxe3 {[%clk 0:01:43]} 16. Rxe3 {[%clk 0:01:50]}  Rxe3 {[%clk 0:01:42]} 17. fxe3 {[%clk 0:01:51]}  Qb6 {[%clk 0:01:31]} 18. Nf1 {[%clk 0:01:46]}  a6 {[%clk 0:01:20]} 19. Bxc6 {[%clk 0:01:45]}  bxc6 {[%clk 0:01:05]} 20. Qb3 {[%clk 0:01:44]}  Rb8 {[%clk 0:01:00]} 21. Qxb6 {[%clk 0:01:36]}  Rxb6 {[%clk 0:01:00]} 22. b3 {[%clk 0:01:36]}  a5 {[%clk 0:00:58]} 23. Kf2 {[%clk 0:01:35]}  a4 {[%clk 0:00:56]} 24. b4 {[%clk 0:01:35]}  Bg6 {[%clk 0:00:47]} 25. Nd2 {[%clk 0:01:32]}  c5 {[%clk 0:00:41]} 26. a3 {[%clk 0:01:32]}  cxb4 {[%clk 0:00:29]} 27. axb4 {[%clk 0:01:30]}  Rc6 {[%clk 0:00:28]} 28. Ra3 {[%clk 0:01:30]}  Bc2 {[%clk 0:00:23]} 29. Nf3 {[%clk 0:01:28]}  Bb3 {[%clk 0:00:20]} 30. Nd4 {[%clk 0:01:16]}  Rxc3 {[%clk 0:00:20]} 31. b5 {[%clk 0:01:17]}  Rc7 {[%clk 0:00:16]} 32. Nxb3 {[%clk 0:01:15]}  axb3 {[%clk 0:00:15]} 33. Rxb3 {[%clk 0:01:16]}  Rb7 {[%clk 0:00:15]} 34. Ke2 {[%clk 0:01:11]}  Ke6 {[%clk 0:00:16]} 35. Kd3 {[%clk 0:01:11]}  Kd6 {[%clk 0:00:16]} 36. Kd4 {[%clk 0:01:11]}  g6 {[%clk 0:00:16]} 37. g4 {[%clk 0:01:09]}  Re7 {[%clk 0:00:13]} 38. b6 {[%clk 0:00:55]}  Rb7 {[%clk 0:00:13]} 39. Rb5 {[%clk 0:00:54]}  Kc6 {[%clk 0:00:12]} 40. Rxd5 {[%clk 0:00:54]}  Rxb6 {[%clk 0:00:12]} 41. Rd8 {[%clk 0:00:51]}  Rb4+ {[%clk 0:00:12]} 42. Kd3 {[%clk 0:00:51]}  h5 {[%clk 0:00:10]} 43. gxh5 {[%clk 0:00:46]}  gxh5 {[%clk 0:00:10]} 44. Rf8 {[%clk 0:00:47]}  Rh4 {[%clk 0:00:09]} 45. Rxf6+ {[%clk 0:00:47]}  Kd7 {[%clk 0:00:09]} 46. Rf3 {[%clk 0:00:47]}  Ke6 {[%clk 0:00:09]} 47. e4 {[%clk 0:00:47]}  Ke5 {[%clk 0:00:09]} 48. Rf5+ {[%clk 0:00:46]}  Ke6 {[%clk 0:00:10]} 49. Kd4 {[%clk 0:00:47]}  Rxh3 {[%clk 0:00:09]} 50. Ra5 {[%clk 0:00:47]}  Rh1 {[%clk 0:00:09]} 51. Ra6+ {[%clk 0:00:48]}  Ke7 {[%clk 0:00:09]} 52. Ke5 {[%clk 0:00:47]}  h4 {[%clk 0:00:08]} 53. Ra7+ {[%clk 0:00:48]}  Kf8 {[%clk 0:00:08]} 54. Kf6 {[%clk 0:00:47]}  Rf1+ {[%clk 0:00:08]} 55. Ke6 {[%clk 0:00:47]}  h3 {[%clk 0:00:07]} 56. Rh7 {[%clk 0:00:46]}  Rf3 {[%clk 0:00:07]} 57. e5 {[%clk 0:00:47]}  Kg8 {[%clk 0:00:06]} 58. Rh4 {[%clk 0:00:47]}  Re3 {[%clk 0:00:06]} 59. Kf6 {[%clk 0:00:47]}  Rf3+ {[%clk 0:00:06]} 60. Ke7 {[%clk 0:00:47]}  Kg7 {[%clk 0:00:05]} 61. e6 {[%clk 0:00:46]}  Rd3 {[%clk 0:00:04]} 62. Ke8 {[%clk 0:00:46]}  Kg6 {[%clk 0:00:02]} 63. e7 {[%clk 0:00:45]}  Kg5 {[%clk 0:00:02]} 64. Rh8 {[%clk 0:00:45]}  Re3 {[%clk 0:00:02]} 65. Kf7 {[%clk 0:00:45]}  Rxe7+ {[%clk 0:00:02]} 66. Kxe7 {[%clk 0:00:45]}  Kg4 {[%clk 0:00:02]} 67. Ke6 {[%clk 0:00:45]}  Kg3 {[%clk 0:00:03]} 68. Ke5 {[%clk 0:00:46]}  h2 {[%clk 0:00:03]} 69. Ke4 {[%clk 0:00:46]}  Kg2 {[%clk 0:00:04]} 70. Rg8+ {[%clk 0:00:46]}  Kf1 {[%clk 0:00:04]} 71. Rh8 {[%clk 0:00:46]}  Kg2 {[%clk 0:00:04]} 72. Rg8+ {[%clk 0:00:45]}  Kf1 {[%clk 0:00:04]} 73. Rh8 {[%clk 0:00:45]}  Kg2 {[%clk 0:00:04]} 1/2-1/2


[Site "https://www.chess.com"]

[Event "Titled Tuesday Blitz August 15 Late 2023"]
[White "Silvestre, Christian"]
[Black "Sloan, Julia Elizabeth"]
[WhiteFideId "30956269"]
[BlackFideId "2018950"]
[WhiteElo "2348"]
[BlackElo "2073"]
[Result "1-0"]
[Round "3"]
[TimeControl "180+1"]
[Date "2023.08.15"]
[WhiteClock "0:01:41"]
[BlackClock "0:00:31"]
[Board "175"]

1. e4 {[%clk 0:03:00]}  g6 {[%clk 0:02:59]} 2. d4 {[%clk 0:03:00]}  Bg7 {[%clk 0:02:58]} 3. Nc3 {[%clk 0:03:01]}  c5 {[%clk 0:02:56]} 4. Be3 {[%clk 0:03:01]}  Nc6 {[%clk 0:02:53]} 5. Nge2 {[%clk 0:03:00]}  cxd4 {[%clk 0:02:52]} 6. Nxd4 {[%clk 0:03:01]}  Nf6 {[%clk 0:02:51]} 7. f3 {[%clk 0:02:59]}  d5 {[%clk 0:02:49]} 8. Nxc6 {[%clk 0:02:59]}  bxc6 {[%clk 0:02:49]} 9. exd5 {[%clk 0:02:59]}  cxd5 {[%clk 0:02:46]} 10. Bd4 {[%clk 0:02:59]}  O-O {[%clk 0:02:45]} 11. Be2 {[%clk 0:02:55]}  e6 {[%clk 0:02:43]} 12. O-O {[%clk 0:02:53]}  Nd7 {[%clk 0:02:28]} 13. Bxg7 {[%clk 0:02:52]}  Kxg7 {[%clk 0:02:28]} 14. Kh1 {[%clk 0:02:49]}  Rb8 {[%clk 0:02:25]} 15. Nb5 {[%clk 0:02:46]}  Qb6 {[%clk 0:02:19]} 16. Rb1 {[%clk 0:02:43]}  Ba6 {[%clk 0:02:17]} 17. a4 {[%clk 0:02:27]}  Nc5 {[%clk 0:02:14]} 18. b3 {[%clk 0:02:19]}  Rfd8 {[%clk 0:02:06]} 19. Qd4+ {[%clk 0:02:15]}  f6 {[%clk 0:02:04]} 20. Qh4 {[%clk 0:02:10]}  Bxb5 {[%clk 0:01:59]} 21. Bxb5 {[%clk 0:02:09]}  a6 {[%clk 0:01:58]} 22. Be2 {[%clk 0:02:09]}  e5 {[%clk 0:01:53]} 23. f4 {[%clk 0:02:07]}  e4 {[%clk 0:01:52]} 24. f5 {[%clk 0:02:03]}  g5 {[%clk 0:01:51]} 25. Qg3 {[%clk 0:02:02]}  Nd7 {[%clk 0:01:46]} 26. h4 {[%clk 0:02:00]}  h6 {[%clk 0:01:44]} 27. Qg4 {[%clk 0:02:01]}  Ne5 {[%clk 0:01:43]} 28. Qh5 {[%clk 0:02:01]}  Qc7 {[%clk 0:01:31]} 29. Bd1 {[%clk 0:01:57]}  Qf7 {[%clk 0:01:30]} 30. Qe2 {[%clk 0:01:57]}  gxh4 {[%clk 0:01:22]} 31. Qxa6 {[%clk 0:01:54]}  Kh8 {[%clk 0:01:13]} 32. Qe2 {[%clk 0:01:53]}  Qg7 {[%clk 0:01:12]} 33. Qf2 {[%clk 0:01:49]}  Qg5 {[%clk 0:01:10]} 34. a5 {[%clk 0:01:48]}  Rg8 {[%clk 0:01:07]} 35. a6 {[%clk 0:01:47]}  Ra8 {[%clk 0:01:05]} 36. Ra1 {[%clk 0:01:47]}  Ng4 {[%clk 0:01:01]} 37. Bxg4 {[%clk 0:01:46]}  Qxg4 {[%clk 0:01:00]} 38. b4 {[%clk 0:01:44]}  h3 {[%clk 0:00:49]} 39. g3 {[%clk 0:01:43]}  Qxg3 {[%clk 0:00:47]} 40. Qxg3 {[%clk 0:01:43]}  Rxg3 {[%clk 0:00:46]} 41. b5 {[%clk 0:01:43]}  Rc3 {[%clk 0:00:40]} 42. b6 {[%clk 0:01:43]}  Rxc2 {[%clk 0:00:31]} 43. b7 {[%clk 0:01:41]} 1-0


[Site "https://www.chess.com"]

[Event "Titled Tuesday Blitz August 15 Late 2023"]
[White "Li, Hui"]
[Black "Maluco_do_Natal_00"]
[WhiteFideId "15400310"]
[WhiteElo "2341"]
[BlackElo "2069"]
[Result "1/2-1/2"]
[Round "3"]
[TimeControl "180+1"]
[Date "2023.08.15"]
[WhiteClock "0:00:04"]
[BlackClock "0:00:02"]
[Board "177"]

1. e4 {[%clk 0:03:00]}  c5 {[%clk 0:02:56]} 2. Nf3 {[%clk 0:03:00]}  Nc6 {[%clk 0:02:56]} 3. d4 {[%clk 0:03:01]}  cxd4 {[%clk 0:02:57]} 4. Nxd4 {[%clk 0:03:02]}  Nf6 {[%clk 0:02:57]} 5. Nc3 {[%clk 0:03:02]}  e5 {[%clk 0:02:57]} 6. Ndb5 {[%clk 0:03:03]}  d6 {[%clk 0:02:58]} 7. Bg5 {[%clk 0:03:02]}  a6 {[%clk 0:02:57]} 8. Na3 {[%clk 0:03:03]}  b5 {[%clk 0:02:57]} 9. Nd5 {[%clk 0:03:03]}  Be7 {[%clk 0:02:58]} 10. Bxf6 {[%clk 0:03:03]}  Bxf6 {[%clk 0:02:58]} 11. c3 {[%clk 0:03:04]}  O-O {[%clk 0:02:58]} 12. Nc2 {[%clk 0:03:04]}  Bg5 {[%clk 0:02:59]} 13. a4 {[%clk 0:03:04]}  bxa4 {[%clk 0:02:58]} 14. Rxa4 {[%clk 0:03:05]}  a5 {[%clk 0:02:59]} 15. Bc4 {[%clk 0:03:06]}  Be6 {[%clk 0:02:56]} 16. O-O {[%clk 0:02:58]}  Ne7 {[%clk 0:02:54]} 17. Nce3 {[%clk 0:02:54]}  Bxe3 {[%clk 0:02:53]} 18. Nxe3 {[%clk 0:02:53]}  Bd7 {[%clk 0:02:34]} 19. Ra2 {[%clk 0:02:45]}  Bc6 {[%clk 0:02:34]} 20. f3 {[%clk 0:02:24]}  Qb6 {[%clk 0:02:29]} 21. Qd2 {[%clk 0:02:24]}  Rfd8 {[%clk 0:02:19]} 22. Kh1 {[%clk 0:02:13]}  Qc5 {[%clk 0:01:17]} 23. Rd1 {[%clk 0:01:11]}  h5 {[%clk 0:01:11]} 24. b3 {[%clk 0:00:46]}  g6 {[%clk 0:01:05]} 25. Raa1 {[%clk 0:00:24]}  Kg7 {[%clk 0:01:00]} 26. Rac1 {[%clk 0:00:18]}  Rd7 {[%clk 0:00:31]} 27. Nd5 {[%clk 0:00:16]}  Bxd5 {[%clk 0:00:27]} 28. Bxd5 {[%clk 0:00:17]}  Raa7 {[%clk 0:00:22]} 29. c4 {[%clk 0:00:08]}  Nxd5 {[%clk 0:00:12]} 30. Qxd5 {[%clk 0:00:08]}  Qxd5 {[%clk 0:00:08]} 31. cxd5 {[%clk 0:00:05]}  Rdb7 {[%clk 0:00:07]} 32. Rd3 {[%clk 0:00:03]}  Rb6 {[%clk 0:00:06]} 33. h4 {[%clk 0:00:03]}  Rab7 {[%clk 0:00:06]} 34. Rc6 {[%clk 0:00:03]}  Rxb3 {[%clk 0:00:05]} 35. Rxb3 {[%clk 0:00:03]}  Rxb3 {[%clk 0:00:05]} 36. Rxd6 {[%clk 0:00:04]}  Rb1+ {[%clk 0:00:05]} 37. Kh2 {[%clk 0:00:04]}  a4 {[%clk 0:00:05]} 38. Ra6 {[%clk 0:00:04]}  Ra1 {[%clk 0:00:06]} 39. Kg3 {[%clk 0:00:03]}  a3 {[%clk 0:00:05]} 40. Kf2 {[%clk 0:00:02]}  a2 {[%clk 0:00:05]} 41. Kg3 {[%clk 0:00:03]}  Kf8 {[%clk 0:00:05]} 42. Kh2 {[%clk 0:00:03]}  Ke7 {[%clk 0:00:05]} 43. Kg3 {[%clk 0:00:03]}  f6 {[%clk 0:00:04]} 44. Kh2 {[%clk 0:00:03]}  g5 {[%clk 0:00:04]} 45. hxg5 {[%clk 0:00:03]}  fxg5 {[%clk 0:00:04]} 46. Kg3 {[%clk 0:00:03]}  Kf7 {[%clk 0:00:04]} 47. Kh2 {[%clk 0:00:03]}  g4 {[%clk 0:00:04]} 48. Ra7+ {[%clk 0:00:03]}  Kf6 {[%clk 0:00:03]} 49. Ra6+ {[%clk 0:00:03]}  Kf7 {[%clk 0:00:03]} 50. Kg3 {[%clk 0:00:03]}  gxf3 {[%clk 0:00:03]} 51. Ra7+ {[%clk 0:00:01]}  Kf6 {[%clk 0:00:02]} 52. Ra6+ {[%clk 0:00:01]}  Ke7 {[%clk 0:00:02]} 53. Ra7+ {[%clk 0:00:02]}  Kd6 {[%clk 0:00:03]} 54. Ra6+ {[%clk 0:00:02]}  Kc7 {[%clk 0:00:03]} 55. Kf2 {[%clk 0:00:01]}  fxg2 {[%clk 0:00:02]} 56. Kxg2 {[%clk 0:00:01]}  h4 {[%clk 0:00:03]} 57. Kh2 {[%clk 0:00:01]}  h3 {[%clk 0:00:03]} 58. Ra7+ {[%clk 0:00:01]}  Kd6 {[%clk 0:00:03]} 59. Ra6+ {[%clk 0:00:02]}  Kc5 {[%clk 0:00:03]} 60. Ra8 {[%clk 0:00:02]}  Re1 {[%clk 0:00:03]} 61. Rxa2 {[%clk 0:00:01]}  Rxe4 {[%clk 0:00:03]} 62. Rd2 {[%clk 0:00:01]}  Rd4 {[%clk 0:00:02]} 63. Re2 {[%clk 0:00:01]}  Kxd5 {[%clk 0:00:03]} 64. Kxh3 {[%clk 0:00:02]}  Rf4 {[%clk 0:00:03]} 65. Kg3 {[%clk 0:00:02]}  Rf8 {[%clk 0:00:03]} 66. Re1 {[%clk 0:00:02]}  e4 {[%clk 0:00:03]} 67. Kg2 {[%clk 0:00:02]}  Kd4 {[%clk 0:00:03]} 68. Rd1+ {[%clk 0:00:02]}  Ke3 {[%clk 0:00:03]} 69. Ra1 {[%clk 0:00:03]}  Kd3 {[%clk 0:00:02]} 70. Ra3+ {[%clk 0:00:03]}  Kd4 {[%clk 0:00:02]} 71. Ra4+ {[%clk 0:00:03]}  Kd3 {[%clk 0:00:02]} 72. Ra3+ {[%clk 0:00:03]}  Kc2 {[%clk 0:00:02]} 73. Re3 {[%clk 0:00:03]}  Rf4 {[%clk 0:00:01]} 74. Kg3 {[%clk 0:00:03]}  Rf3+ {[%clk 0:00:01]} 75. Rxf3 {[%clk 0:00:03]}  exf3 {[%clk 0:00:02]} 76. Kxf3 {[%clk 0:00:04]} 1/2-1/2


[Site "https://www.chess.com"]

[Event "Titled Tuesday Blitz August 15 Late 2023"]
[White "Harish, Neeraj"]
[Black "Verony64"]
[WhiteFideId "30958130"]
[WhiteElo "2330"]
[BlackElo "2047"]
[Result "1/2-1/2"]
[Round "3"]
[TimeControl "180+1"]
[Date "2023.08.15"]
[WhiteClock "0:00:05"]
[BlackClock "0:00:22"]
[Board "179"]

1. e4 {[%clk 0:03:00]}  e5 {[%clk 0:02:58]} 2. Nf3 {[%clk 0:03:01]}  d6 {[%clk 0:02:59]} 3. d4 {[%clk 0:03:00]}  Nd7 {[%clk 0:02:59]} 4. Nc3 {[%clk 0:03:00]}  c6 {[%clk 0:03:00]} 5. g4 {[%clk 0:02:50]}  Be7 {[%clk 0:02:55]} 6. Be3 {[%clk 0:02:42]}  b5 {[%clk 0:02:51]} 7. a3 {[%clk 0:02:35]}  Qc7 {[%clk 0:02:38]} 8. d5 {[%clk 0:02:30]}  a6 {[%clk 0:02:35]} 9. g5 {[%clk 0:02:26]}  Bb7 {[%clk 0:02:30]} 10. Qd2 {[%clk 0:02:21]}  c5 {[%clk 0:02:22]} 11. h4 {[%clk 0:02:12]}  h6 {[%clk 0:01:56]} 12. Bh3 {[%clk 0:01:40]}  O-O-O {[%clk 0:01:50]} 13. O-O-O {[%clk 0:01:29]}  Kb8 {[%clk 0:01:49]} 14. Ne2 {[%clk 0:01:20]}  Nb6 {[%clk 0:01:46]} 15. b3 {[%clk 0:01:11]}  Bf8 {[%clk 0:01:33]} 16. Bg4 {[%clk 0:01:01]}  h5 {[%clk 0:01:25]} 17. Bh3 {[%clk 0:00:55]}  g6 {[%clk 0:01:25]} 18. Kb2 {[%clk 0:00:54]}  Bg7 {[%clk 0:01:25]} 19. Rc1 {[%clk 0:00:42]}  Ne7 {[%clk 0:01:23]} 20. c4 {[%clk 0:00:37]}  bxc4 {[%clk 0:01:20]} 21. bxc4 {[%clk 0:00:37]}  Ka7 {[%clk 0:01:18]} 22. Ka2 {[%clk 0:00:37]}  Rb8 {[%clk 0:01:18]} 23. Qd3 {[%clk 0:00:35]}  Bc8 {[%clk 0:01:17]} 24. Bxc8 {[%clk 0:00:31]}  Rhxc8 {[%clk 0:01:16]} 25. Rb1 {[%clk 0:00:31]}  Rb7 {[%clk 0:01:17]} 26. Bd2 {[%clk 0:00:28]}  Rcb8 {[%clk 0:01:17]} 27. Ba5 {[%clk 0:00:27]}  Nec8 {[%clk 0:01:16]} 28. Rb3 {[%clk 0:00:23]}  Qd7 {[%clk 0:01:16]} 29. Rhb1 {[%clk 0:00:20]}  Na4 {[%clk 0:01:15]} 30. Rxb7+ {[%clk 0:00:18]}  Rxb7 {[%clk 0:01:16]} 31. Rxb7+ {[%clk 0:00:18]}  Qxb7 {[%clk 0:01:16]} 32. Qb3 {[%clk 0:00:19]}  Nab6 {[%clk 0:01:04]} 33. Nd2 {[%clk 0:00:18]}  Qd7 {[%clk 0:01:04]} 34. Bxb6+ {[%clk 0:00:17]}  Nxb6 {[%clk 0:01:03]} 35. Nc3 {[%clk 0:00:17]}  f5 {[%clk 0:01:02]} 36. f3 {[%clk 0:00:16]}  fxe4 {[%clk 0:01:01]} 37. Ncxe4 {[%clk 0:00:16]}  Bf8 {[%clk 0:00:54]} 38. Qc2 {[%clk 0:00:13]}  Qf7 {[%clk 0:00:53]} 39. Nf6 {[%clk 0:00:12]}  Qb7 {[%clk 0:00:52]} 40. Nde4 {[%clk 0:00:12]}  Nd7 {[%clk 0:00:48]} 41. Nxd7 {[%clk 0:00:12]}  Qxd7 {[%clk 0:00:47]} 42. Nf6 {[%clk 0:00:12]}  Qh3 {[%clk 0:00:44]} 43. Qxg6 {[%clk 0:00:11]}  Qg2+ {[%clk 0:00:41]} 44. Ka1 {[%clk 0:00:11]}  Qf1+ {[%clk 0:00:41]} 45. Kb2 {[%clk 0:00:11]}  Qe2+ {[%clk 0:00:39]} 46. Qc2 {[%clk 0:00:11]}  Qxf3 {[%clk 0:00:38]} 47. Nd7 {[%clk 0:00:07]}  Qf7 {[%clk 0:00:34]} 48. Nxf8 {[%clk 0:00:06]}  Qxf8 {[%clk 0:00:35]} 49. Qh7+ {[%clk 0:00:05]}  Kb6 {[%clk 0:00:32]} 50. Qd7 {[%clk 0:00:04]}  Qf2+ {[%clk 0:00:32]} 51. Kb3 {[%clk 0:00:05]}  Qf3+ {[%clk 0:00:30]} 52. Kc2 {[%clk 0:00:04]}  Qe2+ {[%clk 0:00:30]} 53. Kc3 {[%clk 0:00:04]}  Qe3+ {[%clk 0:00:30]} 54. Kb2 {[%clk 0:00:04]}  Qd2+ {[%clk 0:00:29]} 55. Kb3 {[%clk 0:00:05]}  Qd3+ {[%clk 0:00:29]} 56. Kb2 {[%clk 0:00:05]}  Qd2+ {[%clk 0:00:26]} 57. Kb3 {[%clk 0:00:05]}  Qd3+ {[%clk 0:00:23]} 58. Kb2 {[%clk 0:00:05]}  Qd4+ {[%clk 0:00:22]} 59. Kb3 {[%clk 0:00:05]}  Qd3+ {[%clk 0:00:22]} 1/2-1/2


[Site "https://www.chess.com"]